[Event "Early-Titled-Tuesday-Blitz-November-28-2023"]
[Site "Chess.com"]
[Date "2023.11.28"]
[Round "4"]
[White "vovachesss"]
[Black "DanylaBagrov"]
[Result "1-0"]
[WhiteElo "2857"]
[BlackElo "2574"]
[TimeControl "180+1"]
[EndTime "8:39:27 PST"]
[Termination "vovachesss won by checkmate"]

1. e4 {[%clk 0:03:00.9]} 1... d6 {[%clk 0:02:57.8]} 2. d4 {[%clk 0:03:00.3]}
2... Nf6 {[%clk 0:02:58.3]} 3. Nc3 {[%clk 0:03:00.8]} 3... e5 {[%clk 0:02:58.9]}
4. Nf3 {[%clk 0:03:00.9]} 4... Nbd7 {[%clk 0:02:58.6]} 5. Rg1 {[%clk 0:03:00.8]}
5... Be7 {[%clk 0:02:52.2]} 6. g4 {[%clk 0:03:00.8]} 6... exd4 {[%clk
0:02:52.7]} 7. Nxd4 {[%clk 0:03:00.8]} 7... Nc5 {[%clk 0:02:53]} 8. Qf3 {[%clk
0:02:53.5]} 8... Be6 {[%clk 0:02:28.2]} 9. Be3 {[%clk 0:02:34.3]} 9... Nfd7
{[%clk 0:02:00.1]} 10. O-O-O {[%clk 0:02:01.6]} 10... Ne5 {[%clk 0:01:57.7]} 11.
Qe2 {[%clk 0:01:58.5]} 11... Bc4 {[%clk 0:01:41.3]} 12. Qd2 {[%clk 0:01:56.6]}
12... Bxf1 {[%clk 0:01:39.1]} 13. Rdxf1 {[%clk 0:01:56.7]} 13... Nc4 {[%clk
0:01:39.4]} 14. Qe2 {[%clk 0:01:52.4]} 14... Nxe3 {[%clk 0:01:40]} 15. Qxe3
{[%clk 0:01:52.5]} 15... Qd7 {[%clk 0:01:20.8]} 16. Nf5 {[%clk 0:01:39.7]} 16...
Ne6 {[%clk 0:01:20.3]} 17. Nd5 {[%clk 0:01:34.4]} 17... Bd8 {[%clk 0:01:15.6]}
18. Qc3 {[%clk 0:01:22.6]} 18... O-O {[%clk 0:01:02.8]} 19. g5 {[%clk
0:01:22.6]} 19... c6 {[%clk 0:00:38.9]} 20. Nf6+ {[%clk 0:01:13.6]} 20... gxf6
{[%clk 0:00:39]} 21. gxf6+ {[%clk 0:01:14.5]} 21... Kh8 {[%clk 0:00:39.8]} 22.
Rg7 {[%clk 0:01:14]} 22... Nf4 {[%clk 0:00:26.6]} 23. Qf3 {[%clk 0:00:50]} 23...
Bxf6 {[%clk 0:00:25.7]} 24. Rxh7+ {[%clk 0:00:33.3]} 24... Kxh7 {[%clk
0:00:25.2]} 25. Qxf4 {[%clk 0:00:34.2]} 25... Bg7 {[%clk 0:00:18.3]} 26. Qh4+
{[%clk 0:00:22.7]} 26... Kg8 {[%clk 0:00:16.4]} 27. Ne7+ {[%clk 0:00:14.7]}
27... Qxe7 {[%clk 0:00:14.8]} 28. Qxe7 {[%clk 0:00:15.6]} 28... Rae8 {[%clk
0:00:12]} 29. Qxd6 {[%clk 0:00:15.2]} 29... Rxe4 {[%clk 0:00:12.1]} 30. Rg1
{[%clk 0:00:15.8]} 30... Re6 {[%clk 0:00:08.9]} 31. Qd7 {[%clk 0:00:15.3]} 31...
Rfe8 {[%clk 0:00:07.5]} 32. Qxb7 {[%clk 0:00:12.5]} 32... Re2 {[%clk 0:00:06.5]}
33. Qxc6 {[%clk 0:00:11.2]} 33... Kh7 {[%clk 0:00:04.4]} 34. c3 {[%clk
0:00:07.3]} 34... Rxf2 {[%clk 0:00:02.8]} 35. Qc4 {[%clk 0:00:06.6]} 35... Ree2
{[%clk 0:00:02.2]} 36. Qd3+ {[%clk 0:00:06.9]} 36... Kg8 {[%clk 0:00:02.5]} 37.
Qd8+ {[%clk 0:00:05.8]} 37... Kh7 {[%clk 0:00:02.2]} 38. Qh4+ {[%clk 0:00:06.4]}
38... Kg8 {[%clk 0:00:02.7]} 39. Qg5 {[%clk 0:00:06.7]} 39... Rc2+ {[%clk
0:00:02]} 40. Kd1 {[%clk 0:00:07.4]} 40... Kf8 {[%clk 0:00:01.3]} 41. Qd8#
{[%clk 0:00:07.1]} 1-0

[Event "Early-Titled-Tuesday-Blitz-November-28-2023"]
[Site "Chess.com"]
[Date "2023.11.28"]
[Round "4"]
[White "MelihKaanCan"]
[Black "bazar-wokzal"]
[Result "1-0"]
[WhiteElo "2444"]
[BlackElo "2621"]
[TimeControl "180+1"]
[EndTime "8:39:28 PST"]
[Termination "MelihKaanCan won by checkmate"]

1. e4 {[%clk 0:02:57]} 1... Nc6 {[%clk 0:02:59.7]} 2. Nf3 {[%clk 0:02:56.7]}
2... d5 {[%clk 0:02:59.7]} 3. exd5 {[%clk 0:02:55.3]} 3... Qxd5 {[%clk 0:02:58]}
4. Nc3 {[%clk 0:02:55.9]} 4... Qa5 {[%clk 0:02:58.2]} 5. h3 {[%clk 0:02:51]}
5... Nf6 {[%clk 0:02:56.7]} 6. Bb5 {[%clk 0:02:50.8]} 6... Bd7 {[%clk
0:02:56.3]} 7. d3 {[%clk 0:02:49.3]} 7... a6 {[%clk 0:02:53.1]} 8. Ba4 {[%clk
0:02:45.5]} 8... O-O-O {[%clk 0:02:46.8]} 9. Bd2 {[%clk 0:02:41.7]} 9... Qh5
{[%clk 0:02:45.8]} 10. Qe2 {[%clk 0:02:38]} 10... b5 {[%clk 0:02:45.4]} 11. Bb3
{[%clk 0:02:33.3]} 11... Bg4 {[%clk 0:02:45.5]} 12. Bxf7 {[%clk 0:02:25.8]}
12... Qxf7 {[%clk 0:02:34.9]} 13. hxg4 {[%clk 0:02:25.7]} 13... Nxg4 {[%clk
0:02:35.1]} 14. Qe4 {[%clk 0:02:23.6]} 14... Nce5 {[%clk 0:01:50.6]} 15. Nxe5
{[%clk 0:01:59.2]} 15... Qxf2+ {[%clk 0:01:39.8]} 16. Kd1 {[%clk 0:01:58.8]}
16... Nxe5 {[%clk 0:01:39.7]} 17. Qxe5 {[%clk 0:01:59.3]} 17... Qxg2 {[%clk
0:01:40.1]} 18. Re1 {[%clk 0:01:56.3]} 18... h5 {[%clk 0:01:31.1]} 19. a4 {[%clk
0:01:45.7]} 19... b4 {[%clk 0:01:30.8]} 20. Nd5 {[%clk 0:01:46]} 20... Qxd5
{[%clk 0:01:15.5]} 21. Bxb4 {[%clk 0:01:39.2]} 21... h4 {[%clk 0:01:03.2]} 22.
Kd2 {[%clk 0:01:30.3]} 22... g5 {[%clk 0:00:53.5]} 23. Qxh8 {[%clk 0:01:27.7]}
23... g4 {[%clk 0:00:22.2]} 24. Qxh4 {[%clk 0:01:19.9]} 24... Qd4 {[%clk
0:00:15.1]} 25. c3 {[%clk 0:01:14]} 25... Qf4+ {[%clk 0:00:14.4]} 26. Re3 {[%clk
0:01:09.6]} 26... Bh6 {[%clk 0:00:11.3]} 27. Qxe7 {[%clk 0:00:58.8]} 27... Qf2+
{[%clk 0:00:10.4]} 28. Kc1 {[%clk 0:00:46.5]} 28... Bxe3+ {[%clk 0:00:10.5]} 29.
Kb1 {[%clk 0:00:42.9]} 29... g3 {[%clk 0:00:08.5]} 30. Qe6+ {[%clk 0:00:32.1]}
30... Kb7 {[%clk 0:00:08.2]} 31. Qe4+ {[%clk 0:00:30]} 31... Kb8 {[%clk
0:00:08.4]} 32. Ra3 {[%clk 0:00:06.7]} 32... g2 {[%clk 0:00:08.6]} 33. Rb3
{[%clk 0:00:07.2]} 33... g1=Q+ {[%clk 0:00:08.6]} 34. Ka2 {[%clk 0:00:08.1]}
34... Kc8 {[%clk 0:00:08.5]} 35. Qe6+ {[%clk 0:00:06.5]} 35... Rd7 {[%clk
0:00:08.9]} 36. Qe8+ {[%clk 0:00:07]} 36... Rd8 {[%clk 0:00:09.5]} 37. Qe6+
{[%clk 0:00:07.2]} 37... Kb7 {[%clk 0:00:07.2]} 38. Bc5+ {[%clk 0:00:05.5]}
38... Ka8 {[%clk 0:00:04.4]} 39. Qxa6# {[%clk 0:00:05.9]} 1-0

[Event "Early-Titled-Tuesday-Blitz-November-28-2023"]
[Site "Chess.com"]
[Date "2023.11.28"]
[Round "4"]
[White "Pingah9"]
[Black "OK97"]
[Result "0-1"]
[WhiteElo "2543"]
[BlackElo "2783"]
[TimeControl "180+1"]
[EndTime "8:39:29 PST"]
[Termination "OK97 won by resignation"]

1. e4 {[%clk 0:02:58.6]} 1... c5 {[%clk 0:02:59.8]} 2. Nc3 {[%clk 0:02:57.9]}
2... Nc6 {[%clk 0:02:59.6]} 3. Nge2 {[%clk 0:02:57.8]} 3... d6 {[%clk
0:02:59.3]} 4. d4 {[%clk 0:02:57.2]} 4... cxd4 {[%clk 0:02:59.3]} 5. Nxd4 {[%clk
0:02:58.1]} 5... Nf6 {[%clk 0:02:59.9]} 6. Bg5 {[%clk 0:02:58.2]} 6... e6 {[%clk
0:03:00]} 7. Qd2 {[%clk 0:02:58.3]} 7... a6 {[%clk 0:02:59.9]} 8. O-O-O {[%clk
0:02:58]} 8... Bd7 {[%clk 0:03:00.1]} 9. f4 {[%clk 0:02:56.1]} 9... Be7 {[%clk
0:03:00.2]} 10. h4 {[%clk 0:02:51.6]} 10... h6 {[%clk 0:02:37]} 11. Bxf6 {[%clk
0:02:46.7]} 11... Bxf6 {[%clk 0:02:37.9]} 12. Nb3 {[%clk 0:02:23.2]} 12... Be7
{[%clk 0:02:29.9]} 13. g4 {[%clk 0:02:18]} 13... Qc7 {[%clk 0:02:11.3]} 14. Bg2
{[%clk 0:02:14.5]} 14... O-O-O {[%clk 0:02:09.3]} 15. Qf2 {[%clk 0:02:09.7]}
15... Kb8 {[%clk 0:01:59.8]} 16. Kb1 {[%clk 0:02:08.6]} 16... Rhf8 {[%clk
0:01:38.2]} 17. g5 {[%clk 0:02:03.6]} 17... hxg5 {[%clk 0:01:28.8]} 18. hxg5
{[%clk 0:02:04.5]} 18... f6 {[%clk 0:01:26.4]} 19. g6 {[%clk 0:01:58.4]} 19...
f5 {[%clk 0:01:26.9]} 20. exf5 {[%clk 0:01:47.5]} 20... Rxf5 {[%clk 0:01:25.3]}
21. Bh3 {[%clk 0:01:35]} 21... Rf6 {[%clk 0:01:06.6]} 22. f5 {[%clk 0:01:35.1]}
22... Rdf8 {[%clk 0:00:57]} 23. Qe2 {[%clk 0:01:30.8]} 23... Rxf5 {[%clk
0:00:50.7]} 24. Bxf5 {[%clk 0:01:28.8]} 24... Rxf5 {[%clk 0:00:51.6]} 25. Rh8+
{[%clk 0:01:17.6]} 25... Ka7 {[%clk 0:00:44.7]} 26. Qe3+ {[%clk 0:01:17.4]}
26... b6 {[%clk 0:00:42]} 27. a4 {[%clk 0:01:16.5]} 27... Kb7 {[%clk 0:00:36.2]}
28. Rh7 {[%clk 0:01:07.1]} 28... Bf6 {[%clk 0:00:30.4]} 29. Ne4 {[%clk
0:01:07.1]} 29... Be5 {[%clk 0:00:30.9]} 30. Nbd2 {[%clk 0:00:56]} 30... d5
{[%clk 0:00:28.3]} 31. Nf2 {[%clk 0:00:47.7]} 31... Bd4 {[%clk 0:00:27.9]} 32.
Qa3 {[%clk 0:00:35.3]} 32... Rxf2 {[%clk 0:00:25.3]} 33. Nb3 {[%clk 0:00:31.9]}
33... Bf6 {[%clk 0:00:23.3]} 34. a5 {[%clk 0:00:30.8]} 34... Nxa5 {[%clk
0:00:19.9]} 35. Nxa5+ {[%clk 0:00:29]} 35... bxa5 {[%clk 0:00:20.8]} 36. c3
{[%clk 0:00:28.4]} 36... Bb5 {[%clk 0:00:15.2]} 37. Qf8 {[%clk 0:00:21]} 37...
a4 {[%clk 0:00:13.7]} 38. Rh8 {[%clk 0:00:18.4]} 38... Rxb2+ {[%clk 0:00:13]}
39. Ka1 {[%clk 0:00:17.2]} 39... Rb3 {[%clk 0:00:08.1]} 40. Qa8+ {[%clk
0:00:16.6]} 40... Kb6 {[%clk 0:00:08.7]} 41. Qb8+ {[%clk 0:00:16.7]} 41... Qxb8
{[%clk 0:00:08.5]} 42. Rxb8+ {[%clk 0:00:17.6]} 42... Kc7 {[%clk 0:00:08.9]} 43.
Ka2 {[%clk 0:00:17]} 43... Kxb8 {[%clk 0:00:08.7]} 0-1

[Event "Early-Titled-Tuesday-Blitz-November-28-2023"]
[Site "Chess.com"]
[Date "2023.11.28"]
[Round "4"]
[White "AlexTruskavetsky"]
[Black "Eagle_2019"]
[Result "0-1"]
[WhiteElo "2436"]
[BlackElo "2672"]
[TimeControl "180+1"]
[EndTime "8:39:31 PST"]
[Termination "Eagle_2019 won by resignation"]

1. d4 {[%clk 0:02:59.5]} 1... d5 {[%clk 0:02:59.8]} 2. c4 {[%clk 0:02:58.3]}
2... e6 {[%clk 0:02:59.2]} 3. Nc3 {[%clk 0:02:57.2]} 3... Nf6 {[%clk 0:02:58.6]}
4. cxd5 {[%clk 0:02:56.9]} 4... exd5 {[%clk 0:02:57.9]} 5. Bg5 {[%clk
0:02:53.4]} 5... c6 {[%clk 0:02:56.1]} 6. e3 {[%clk 0:02:51.5]} 6... Bd6 {[%clk
0:02:52.2]} 7. Bd3 {[%clk 0:02:46.6]} 7... O-O {[%clk 0:02:52]} 8. Qc2 {[%clk
0:02:40.1]} 8... h6 {[%clk 0:02:51.5]} 9. Bh4 {[%clk 0:02:37.8]} 9... Re8 {[%clk
0:02:51.3]} 10. Nge2 {[%clk 0:02:38.3]} 10... a5 {[%clk 0:02:50.7]} 11. h3
{[%clk 0:02:37.1]} 11... Na6 {[%clk 0:02:49.9]} 12. a3 {[%clk 0:02:36.9]} 12...
Nc7 {[%clk 0:02:48.8]} 13. O-O {[%clk 0:02:36.7]} 13... Ne6 {[%clk 0:02:48.2]}
14. f3 {[%clk 0:02:36.3]} 14... Be7 {[%clk 0:02:47.4]} 15. Bf2 {[%clk
0:02:34.5]} 15... Nh5 {[%clk 0:02:47.4]} 16. g4 {[%clk 0:02:33.9]} 16... Nf6
{[%clk 0:02:39.4]} 17. Rae1 {[%clk 0:02:34.1]} 17... b5 {[%clk 0:02:38.1]} 18.
Kg2 {[%clk 0:02:33.7]} 18... Bd7 {[%clk 0:02:30.5]} 19. e4 {[%clk 0:02:33.2]}
19... dxe4 {[%clk 0:02:29.9]} 20. fxe4 {[%clk 0:02:34.1]} 20... b4 {[%clk
0:02:27.2]} 21. Nd1 {[%clk 0:02:33.5]} 21... bxa3 {[%clk 0:02:24.8]} 22. bxa3
{[%clk 0:02:34.4]} 22... Bxa3 {[%clk 0:02:24.7]} 23. Ne3 {[%clk 0:02:34.3]}
23... Bb4 {[%clk 0:02:20.7]} 24. Rd1 {[%clk 0:02:33.5]} 24... Ng5 {[%clk
0:02:17]} 25. e5 {[%clk 0:02:30.7]} 25... Nd5 {[%clk 0:02:16.3]} 26. Nxd5 {[%clk
0:02:30.9]} 26... cxd5 {[%clk 0:02:17.2]} 27. Nf4 {[%clk 0:02:30.8]} 27... Rc8
{[%clk 0:02:12.4]} 28. Qb1 {[%clk 0:02:30]} 28... Ne4 {[%clk 0:02:11]} 29. Bxe4
{[%clk 0:02:29.2]} 29... dxe4 {[%clk 0:02:11.9]} 30. Qxe4 {[%clk 0:02:29.9]}
30... Bb5 {[%clk 0:02:08.4]} 31. Rg1 {[%clk 0:02:29.2]} 31... Qg5 {[%clk
0:01:53.7]} 32. Qf5 {[%clk 0:02:09.2]} 32... Bc6+ {[%clk 0:01:49.7]} 33. d5
{[%clk 0:02:09.4]} 33... Ba8 {[%clk 0:01:46.4]} 34. Rc1 {[%clk 0:01:52]} 34...
Rxc1 {[%clk 0:01:40.5]} 35. Rxc1 {[%clk 0:01:52.9]} 35... Bd2 {[%clk 0:01:36.7]}
36. Rc8 {[%clk 0:01:50.6]} 36... Rxc8 {[%clk 0:00:52.5]} 37. Qxc8+ {[%clk
0:01:51.5]} 37... Kh7 {[%clk 0:00:52.6]} 38. Qc2+ {[%clk 0:01:50.7]} 38... g6
{[%clk 0:00:51.1]} 39. Qxd2 {[%clk 0:01:50.6]} 39... Qxe5 {[%clk 0:00:50.3]} 40.
Bg3 {[%clk 0:01:45.8]} 40... g5 {[%clk 0:00:44.9]} 41. Nh5 {[%clk 0:01:45.2]}
41... Qxd5+ {[%clk 0:00:43]} 42. Qxd5 {[%clk 0:01:45.1]} 42... Bxd5+ {[%clk
0:00:43.9]} 43. Kh2 {[%clk 0:01:45.4]} 43... Kg6 {[%clk 0:00:42.8]} 44. Be5
{[%clk 0:01:43.5]} 44... f5 {[%clk 0:00:41.1]} 45. Ng3 {[%clk 0:01:38.2]} 45...
f4 {[%clk 0:00:36.8]} 46. Ne2 {[%clk 0:01:38.6]} 46... a4 {[%clk 0:00:34.1]} 47.
Nc3 {[%clk 0:01:18.7]} 47... Bc6 {[%clk 0:00:33.5]} 48. h4 {[%clk 0:01:13.6]}
48... h5 {[%clk 0:00:31.5]} 49. gxh5+ {[%clk 0:00:59.9]} 49... Kxh5 {[%clk
0:00:30.5]} 50. hxg5 {[%clk 0:01:00.4]} 50... Kxg5 {[%clk 0:00:28.8]} 51. Ne2
{[%clk 0:00:58.8]} 51... f3 {[%clk 0:00:26.4]} 52. Nd4 {[%clk 0:00:57.7]} 52...
f2 {[%clk 0:00:24.5]} 53. Ne6+ {[%clk 0:00:40.2]} 53... Kg4 {[%clk 0:00:24]} 0-1

[Event "Early-Titled-Tuesday-Blitz-November-28-2023"]
[Site "Chess.com"]
[Date "2023.11.28"]
[Round "4"]
[White "shimastream"]
[Black "Zavgorodniy_Sergiy"]
[Result "1-0"]
[WhiteElo "2952"]
[BlackElo "2694"]
[TimeControl "180+1"]
[EndTime "8:39:33 PST"]
[Termination "shimastream won on time"]

1. d4 {[%clk 0:02:53.7]} 1... Nf6 {[%clk 0:02:59.1]} 2. c4 {[%clk 0:02:49.9]}
2... e6 {[%clk 0:02:58.9]} 3. Nc3 {[%clk 0:02:48.5]} 3... Bb4 {[%clk 0:02:58.8]}
4. e3 {[%clk 0:02:47]} 4... b6 {[%clk 0:02:58]} 5. Ne2 {[%clk 0:02:34.5]} 5...
Ne4 {[%clk 0:02:56.8]} 6. Qc2 {[%clk 0:02:31.8]} 6... Bb7 {[%clk 0:02:54.5]} 7.
a3 {[%clk 0:02:26.1]} 7... Bxc3+ {[%clk 0:02:54.4]} 8. Nxc3 {[%clk 0:02:27]}
8... Nxc3 {[%clk 0:02:54.6]} 9. Qxc3 {[%clk 0:02:27.9]} 9... Qh4 {[%clk
0:02:54.1]} 10. b4 {[%clk 0:02:19.8]} 10... O-O {[%clk 0:02:50.5]} 11. Bb2
{[%clk 0:02:19.5]} 11... Be4 {[%clk 0:02:44.3]} 12. Qd2 {[%clk 0:02:15.2]} 12...
d6 {[%clk 0:02:37.4]} 13. O-O-O {[%clk 0:02:09]} 13... a5 {[%clk 0:02:31.1]} 14.
f3 {[%clk 0:02:08.1]} 14... Bg6 {[%clk 0:02:07.6]} 15. b5 {[%clk 0:02:05.3]}
15... c6 {[%clk 0:02:04.6]} 16. g3 {[%clk 0:01:52.2]} 16... Qe7 {[%clk
0:02:00.6]} 17. e4 {[%clk 0:01:48.7]} 17... cxb5 {[%clk 0:01:59.1]} 18. cxb5
{[%clk 0:01:49.6]} 18... d5 {[%clk 0:01:54.2]} 19. Bd3 {[%clk 0:01:45.9]} 19...
Nd7 {[%clk 0:01:52.5]} 20. exd5 {[%clk 0:01:36.5]} 20... Bxd3 {[%clk 0:01:45.7]}
21. Qxd3 {[%clk 0:01:36.2]} 21... exd5 {[%clk 0:01:45.9]} 22. Kb1 {[%clk
0:01:33.6]} 22... Rac8 {[%clk 0:01:37.2]} 23. Rhe1 {[%clk 0:01:33.3]} 23... Qd6
{[%clk 0:01:35.7]} 24. Re2 {[%clk 0:01:31.8]} 24... Rfe8 {[%clk 0:01:23]} 25.
Rxe8+ {[%clk 0:01:28.3]} 25... Rxe8 {[%clk 0:01:22.2]} 26. Rc1 {[%clk
0:01:29.2]} 26... Nb8 {[%clk 0:00:56.5]} 27. Rc2 {[%clk 0:01:21.1]} 27... h6
{[%clk 0:00:53.5]} 28. Bc1 {[%clk 0:01:19.9]} 28... Qe6 {[%clk 0:00:50.6]} 29.
Bf4 {[%clk 0:01:17.3]} 29... Nd7 {[%clk 0:00:48.1]} 30. Kb2 {[%clk 0:01:11.2]}
30... Qe1 {[%clk 0:00:42.1]} 31. Qf5 {[%clk 0:01:05.5]} 31... Nf6 {[%clk
0:00:21.2]} 32. Be5 {[%clk 0:01:04.9]} 32... Qf1 {[%clk 0:00:20.6]} 33. a4
{[%clk 0:00:30.3]} 33... Qe1 {[%clk 0:00:20.6]} 34. Bd6 {[%clk 0:00:30.9]} 34...
Re2 {[%clk 0:00:17]} 35. Qd3 {[%clk 0:00:24.6]} 35... Rxc2+ {[%clk 0:00:13.2]}
36. Qxc2 {[%clk 0:00:25.5]} 36... Qe3 {[%clk 0:00:11.8]} 37. Qc3 {[%clk
0:00:24.2]} 37... Qe2+ {[%clk 0:00:10.5]} 38. Kb3 {[%clk 0:00:24.3]} 38... Qd1+
{[%clk 0:00:07.8]} 39. Ka3 {[%clk 0:00:23]} 39... g6 {[%clk 0:00:07.4]} 40. Be5
{[%clk 0:00:22.6]} 40... Nd7 {[%clk 0:00:02.3]} 41. Qc8+ {[%clk 0:00:21.8]}
41... Nf8 {[%clk 0:00:02.6]} 42. Qc3 {[%clk 0:00:15.5]} 42... Qe2 {[%clk
0:00:02.8]} 43. g4 {[%clk 0:00:10.4]} 43... Ne6 {[%clk 0:00:01.7]} 44. h4 {[%clk
0:00:10.1]} 1-0

[Event "Early-Titled-Tuesday-Blitz-November-28-2023"]
[Site "Chess.com"]
[Date "2023.11.28"]
[Round "4"]
[White "Byniolus"]
[Black "Tartody"]
[Result "0-1"]
[WhiteElo "2810"]
[BlackElo "2617"]
[TimeControl "180+1"]
[EndTime "8:39:35 PST"]
[Termination "Tartody won on time"]

1. d4 {[%clk 0:03:00.9]} 1... e6 {[%clk 0:02:59.8]} 2. Nf3 {[%clk 0:03:01.1]}
2... d6 {[%clk 0:03:00.1]} 3. Bf4 {[%clk 0:03:01.4]} 3... h6 {[%clk 0:02:58.7]}
4. h3 {[%clk 0:03:01.7]} 4... g5 {[%clk 0:02:58.8]} 5. Bh2 {[%clk 0:03:01.6]}
5... Bg7 {[%clk 0:02:59.5]} 6. e3 {[%clk 0:03:01.6]} 6... Ne7 {[%clk 0:03:00]}
7. c4 {[%clk 0:03:01.6]} 7... Nd7 {[%clk 0:03:00.2]} 8. Nc3 {[%clk 0:03:01.9]}
8... b6 {[%clk 0:02:59.7]} 9. Bd3 {[%clk 0:02:54]} 9... Bb7 {[%clk 0:02:57.5]}
10. Qc2 {[%clk 0:02:54.4]} 10... f5 {[%clk 0:02:51.4]} 11. O-O-O {[%clk
0:02:51.5]} 11... Nf6 {[%clk 0:02:51.1]} 12. e4 {[%clk 0:02:45.4]} 12... fxe4
{[%clk 0:02:46.5]} 13. Nxe4 {[%clk 0:02:46.3]} 13... O-O {[%clk 0:02:46.1]} 14.
Rhe1 {[%clk 0:02:22.7]} 14... Qd7 {[%clk 0:02:42.9]} 15. Nxf6+ {[%clk
0:02:18.1]} 15... Rxf6 {[%clk 0:02:43.8]} 16. Be4 {[%clk 0:02:17.6]} 16... Bxe4
{[%clk 0:02:43.4]} 17. Rxe4 {[%clk 0:02:18.5]} 17... Raf8 {[%clk 0:02:42.7]} 18.
Rde1 {[%clk 0:02:15.4]} 18... Ng6 {[%clk 0:02:30.2]} 19. Bg3 {[%clk 0:02:00.6]}
19... a5 {[%clk 0:02:26.3]} 20. h4 {[%clk 0:01:54.4]} 20... gxh4 {[%clk
0:02:22.6]} 21. Nxh4 {[%clk 0:01:53.9]} 21... Nxh4 {[%clk 0:02:23]} 22. Bxh4
{[%clk 0:01:46.9]} 22... Rf4 {[%clk 0:02:22.7]} 23. Bg3 {[%clk 0:01:47.6]} 23...
Rxe4 {[%clk 0:02:22.4]} 24. Qxe4 {[%clk 0:01:48.5]} 24... e5 {[%clk 0:01:58.2]}
25. dxe5 {[%clk 0:01:16.6]} 25... dxe5 {[%clk 0:01:53.6]} 26. Rd1 {[%clk
0:01:06.3]} 26... Qe7 {[%clk 0:01:30.9]} 27. f4 {[%clk 0:00:47.5]} 27... a4
{[%clk 0:01:19.3]} 28. a3 {[%clk 0:00:44.2]} 28... b5 {[%clk 0:01:12.9]} 29. Kb1
{[%clk 0:00:35.5]} 29... b4 {[%clk 0:01:10.2]} 30. axb4 {[%clk 0:00:17.9]} 30...
Qxb4 {[%clk 0:01:11.1]} 31. Be1 {[%clk 0:00:12.4]} 31... Qb3 {[%clk 0:00:45.6]}
32. Rd3 {[%clk 0:00:09]} 32... Qb6 {[%clk 0:00:46.1]} 33. Bc3 {[%clk 0:00:07.1]}
33... a3 {[%clk 0:00:40]} 34. Rd7 {[%clk 0:00:05.4]} 34... axb2 {[%clk 0:00:30]}
35. Rxg7+ {[%clk 0:00:03.2]} 35... Kxg7 {[%clk 0:00:30.9]} 36. Qxe5+ {[%clk
0:00:03.7]} 36... Kf7 {[%clk 0:00:29]} 37. Qf5+ {[%clk 0:00:03.6]} 37... Ke7
{[%clk 0:00:27.2]} 38. Qe4+ {[%clk 0:00:04.3]} 38... Kd7 {[%clk 0:00:25.2]} 39.
Qd5+ {[%clk 0:00:04.4]} 39... Qd6 {[%clk 0:00:23.6]} 40. Qb5+ {[%clk 0:00:04.8]}
40... Qc6 {[%clk 0:00:23.7]} 41. Qe5 {[%clk 0:00:03.1]} 41... Re8 {[%clk
0:00:20.5]} 42. Qd4+ {[%clk 0:00:02.5]} 42... Kc8 {[%clk 0:00:21.1]} 43. Kxb2
{[%clk 0:00:02]} 43... Qxg2+ {[%clk 0:00:20.8]} 44. Ka3 {[%clk 0:00:01.9]} 44...
Qa8+ {[%clk 0:00:21]} 45. Kb3 {[%clk 0:00:02.5]} 45... Qb7+ {[%clk 0:00:21.5]}
46. Bb4 {[%clk 0:00:03]} 46... Qf3+ {[%clk 0:00:20.9]} 47. Ka4 {[%clk
0:00:02.7]} 47... Qe4 {[%clk 0:00:19.2]} 48. Qg7 {[%clk 0:00:01.6]} 48... Kb7
{[%clk 0:00:16.2]} 0-1

[Event "Early-Titled-Tuesday-Blitz-November-28-2023"]
[Site "Chess.com"]
[Date "2023.11.28"]
[Round "4"]
[White "vladoboch"]
[Black "deepfear"]
[Result "1-0"]
[WhiteElo "2430"]
[BlackElo "1920"]
[TimeControl "180+1"]
[EndTime "8:39:37 PST"]
[Termination "vladoboch won on time"]

1. e4 {[%clk 0:03:00.9]} 1... c5 {[%clk 0:02:50.4]} 2. Nf3 {[%clk 0:03:00.6]}
2... g6 {[%clk 0:02:49.5]} 3. d4 {[%clk 0:02:58.7]} 3... cxd4 {[%clk 0:02:49]}
4. Nxd4 {[%clk 0:02:59.6]} 4... Bg7 {[%clk 0:02:48.5]} 5. Be3 {[%clk 0:02:58.4]}
5... Nc6 {[%clk 0:02:47.7]} 6. c4 {[%clk 0:02:55.5]} 6... Nf6 {[%clk 0:02:47.3]}
7. Nc3 {[%clk 0:02:55.2]} 7... O-O {[%clk 0:02:47.3]} 8. Be2 {[%clk 0:02:50.4]}
8... d6 {[%clk 0:02:47.4]} 9. O-O {[%clk 0:02:49.8]} 9... Bd7 {[%clk 0:02:45.5]}
10. h3 {[%clk 0:02:48.7]} 10... Nxd4 {[%clk 0:02:39.1]} 11. Bxd4 {[%clk
0:02:49.1]} 11... Bc6 {[%clk 0:02:39.2]} 12. Qc2 {[%clk 0:02:49.8]} 12... Nd7
{[%clk 0:02:29.2]} 13. Bxg7 {[%clk 0:02:42.4]} 13... Kxg7 {[%clk 0:02:30.1]} 14.
b4 {[%clk 0:02:28]} 14... b6 {[%clk 0:02:06.5]} 15. Rad1 {[%clk 0:02:12]} 15...
a5 {[%clk 0:02:00.7]} 16. a3 {[%clk 0:01:59.7]} 16... Qc7 {[%clk 0:01:46.4]} 17.
f4 {[%clk 0:01:49]} 17... Ra7 {[%clk 0:01:24.4]} 18. Kh1 {[%clk 0:01:40.8]}
18... Rfa8 {[%clk 0:01:22]} 19. b5 {[%clk 0:01:29.2]} 19... Bb7 {[%clk
0:01:17.8]} 20. Bf3 {[%clk 0:00:59.5]} 20... Rf8 {[%clk 0:01:04.4]} 21. Qb2
{[%clk 0:00:57.4]} 21... Kg8 {[%clk 0:00:57.5]} 22. Qe2 {[%clk 0:00:32.8]} 22...
Ba8 {[%clk 0:00:49]} 23. Rd4 {[%clk 0:00:28.8]} 23... Qc5 {[%clk 0:00:46.5]} 24.
Rfd1 {[%clk 0:00:27.4]} 24... Qxa3 {[%clk 0:00:41.8]} 25. Qe1 {[%clk 0:00:14.8]}
25... Nf6 {[%clk 0:00:35]} 26. R1d3 {[%clk 0:00:10.8]} 26... Qc5 {[%clk
0:00:32.7]} 27. e5 {[%clk 0:00:04.4]} 27... dxe5 {[%clk 0:00:30.9]} 28. fxe5
{[%clk 0:00:04.4]} 28... Bxf3 {[%clk 0:00:30.5]} 29. gxf3 {[%clk 0:00:04.3]}
29... Nh5 {[%clk 0:00:29.2]} 30. Nd5 {[%clk 0:00:04.3]} 30... e6 {[%clk
0:00:17]} 31. Nf6+ {[%clk 0:00:04.1]} 31... Nxf6 {[%clk 0:00:16.4]} 32. exf6
{[%clk 0:00:05]} 32... Qh5 {[%clk 0:00:15]} 33. Rh4 {[%clk 0:00:04]} 33... Qf5
{[%clk 0:00:14.1]} 34. Rdd4 {[%clk 0:00:01.6]} 34... Qxf6 {[%clk 0:00:12.6]} 35.
Rdf4 {[%clk 0:00:01.4]} 35... Qg7 {[%clk 0:00:07.2]} 36. Rfg4 {[%clk 0:00:01.7]}
36... Rd7 {[%clk 0:00:05.9]} 37. Rg2 {[%clk 0:00:02]} 37... Rfd8 {[%clk
0:00:06]} 38. Kh2 {[%clk 0:00:02.4]} 38... Rd1 {[%clk 0:00:06.2]} 39. Qg3 {[%clk
0:00:02.9]} 39... R1d2 {[%clk 0:00:05.5]} 40. Qg5 {[%clk 0:00:02.8]} 40... h6
{[%clk 0:00:03.6]} 41. Rxh6 {[%clk 0:00:02.3]} 41... Rxg2+ {[%clk 0:00:02.8]}
42. Kxg2 {[%clk 0:00:02.9]} 42... Qb2+ {[%clk 0:00:02.2]} 43. Kg3 {[%clk
0:00:03.1]} 43... Qg7 {[%clk 0:00:01.3]} 44. Qxd8+ {[%clk 0:00:03.2]} 1-0